[Event "FIDE WSCC 50 2022"]
[Site "Assisi"]
[Date "2022.11.19"]
[Round "5.1"]
[White "Novik, Maxim"]
[Black "Lima, Darcy"]
[Result "1/2-1/2"]
[ECO "D02"]
[WhiteElo "2412"]
[BlackElo "2415"]
[Annotator "TA"]
[PlyCount "43"]
[EventDate "2022.11.14"]
[EventType "swiss"]
[EventCountry "ITA"]
[SourceTitle "playchess.com"]
[Source "ChessBase"]
[SourceQuality "1"]
[TimeControl "40/5400+30:1800+30"]

{[%evp 9,43,24,25,17,14,12,17,8,28,14,18,18,22,0,19,4,10,4,3,3,12,16,16,0,0,0,6,0,20,0,0,0,0,0,0,-6]} 1. Nf3 {[%emt 0:00:30]} d5 {[%emt 0:00:39]} 2. g3 {[%emt 0:00:00]} Nc6 {[%emt 0:01:00]} 3. d4 {[%emt 0:04:30]} Bf5 {[%emt 0:00:30]} 4. Bg2 {[%emt 0:00:56]} Nb4 {[%emt 0:00:27]} 5. Na3 {[%emt 0:09:58][%cal Bb1a3,Ba3c2,Bc2e1,Be1d3][%mdl 32]} e6 {[%emt 0:00:41]} 6. c3 {[%emt 0:00:21] D02: 1 d4 d5 2 Nf3 sidelines, including 2...Nf6 3 g3 and 2...Nf6 3 Bf4.} Nc6 {[%emt 0:00:09]} 7. Nc2 {[%emt 0:03:09]} Be4 {[%emt 0:04:20]} 8. O-O {[%emt 0:00:44]} Be7 {[%emt 0:00:16]} 9. Nce1 {[%emt 0:00:39]} Nf6 {[%emt 0:00:15] The position is equal.} 10. Nd3 {[%emt 0:02:24]} h6 {[%emt 0:01:04] [#]} 11. Qb3 $146 {[%emt 1:12:49]} ({Predecessor:} 11. b4 O-O 12. Bh3 Bh7 13. a4 a5 14. b5 Nb8 15. Nde5 c5 16. bxc6 Nxc6 17. Qb3 {0-1 (90) Priasmoro,N (2498)-Percivaldi,M (2376) Manavgat 2018}) 11... Rb8 {[%emt 0:04:08]} 12. Bf4 {[%emt 0:00:00]} O-O {[%emt 0:00:40]} 13. Rac1 {[%emt 0:00:00]} Bd6 {[%emt 0:01:56] [#] White must now prevent ...Bxd3.} 14. Nfe5 {[%emt 0:00:00]} Bxg2 {[%emt 0:16:09]} 15. Kxg2 {[%emt 0:00:00]} Bxe5 {[%emt 0:01:29]} 16. Nxe5 {[%emt 0:00:00]} Nxe5 {[%emt 0:01:40]} 17. Bxe5 {[%emt 0:00:00]} Ne4 {[%emt 0:01:20] aiming for ...Nd2.} 18. Rfd1 {[%emt 0:00:00] Prevents Nd2.} Nd6 {[%emt 0:05:02] Against c4} 19. Qc2 {[%emt 0:00:00]} Qd7 {[%emt 0:07:25]} 20. b3 {[%emt 0:00:00]} b5 {[%emt 0:00:06]} 21. Qd3 {[%emt 0:00:00]} a5 {[%emt 0:06:12]} 22. Rc2 {[%emt 0:05:30] A balanced but interesting game.  Weighted Error Value: White=0.06 (flawless) /Black=0.05 (flawless)} 1/2-1/2

[Event "FIDE WSCC 50 2022"]
[Site "Assisi"]
[Date "2022.11.19"]
[Round "5.2"]
[White "Antonio, Rogelio Jr"]
[Black "Prie, Eric"]
[Result "1-0"]
[ECO "B01"]
[WhiteElo "2397"]
[BlackElo "2356"]
[Annotator "TA"]
[PlyCount "94"]
[EventDate "2022.11.14"]
[EventType "swiss"]
[EventCountry "ITA"]
[SourceTitle "playchess.com"]
[Source "ChessBase"]
[SourceQuality "1"]
[TimeControl "40/5400+30:1800+30"]

{[%evp 14,94,40,53,53,3,31,29,43,27,36,39,70,46,52,14,29,0,27,8,83,100,179,159,199,99,206,215,190,203,192,200,252,254,411,283,275,289,430,425,429,428,428,424,416,418,412,410,505,375,362,358,349,284,277,281,264,239,328,291,275,240,239,232,269,230,352,349,361,329,352,350,349,316,379,379,372,358,394,387,387,387,5060]} 1. e4 {[%emt 0:00:41]} d5 {[%emt 0:00:20]} 2. exd5 {[%emt 0:01:33]} Qxd5 {[%emt 0:00:10]} 3. Nc3 {[%emt 0:01:17]} Qa5 {[%emt 0:00:07]} 4. d4 {[%emt 0:01:31]} Nf6 {[%emt 0:00:12]} 5. Nf3 {[%emt 0:00:08]} Bf5 {[%emt 0:00:15]} 6. Bd2 {[%emt 0:00:46]} c6 {[%emt 0:04:17] 6...e6 gains popularity.} 7. Bc4 {[%emt 0:05:58] 7.Ne4 is not played anymore.} e6 {[%emt 0:08:11] [#]} 8. Ne4 $1 {[%emt 0:10:28]} Qc7 {[%emt 0:12:23] B01: Scandinavian Defence.} (8... Qd8 9. Ng3) 9. Ng3 {[%emt 0:02:19]} (9. Nxf6+ $1 $14 gxf6 10. Nh4) 9... Bg4 {[%emt 0:07:05]} 10. h3 {[%emt 0:00:21]} Bxf3 {[%emt 0:00:09] White has an edge.} 11. Qxf3 {[%emt 0:00:20]} (11. gxf3 c5 $15) 11... Nbd7 {[%emt 0:00:07]} 12. O-O {[%emt 0:03:29] [#]} O-O-O $146 {[%emt 0:03:22]} ({Predecessor:} 12... Bd6 13. c3 O-O 14. Bd3 a5 15. Rfe1 Nd5 16. Re4 Rfe8 17. Rae1 b5 18. b3 a4 {½-½ (45) Lane,G (2440)-Infante Guerrero,M (2157) Turin 2006}) 13. Rfd1 {[%emt 0:02:17]} Rg8 {[%emt 0:10:13]} 14. Bb3 {[%emt 0:07:12]} g5 {[%emt 0:00:25]} 15. c4 {[%emt 0:00:05]} g4 {[%emt 0:00:26]} 16. hxg4 {[%emt 0:00:05]} Rxg4 {[%emt 0:00:21] [#]} (16... Nxg4 $11 {remains equal.} 17. c5 (17. Qxf7 Bd6 $15) 17... Bh6) 17. Nh5 $1 $16 {[%emt 0:00:50]} Be7 {[%emt 0:29:55]} (17... Rxd4 $16 18. Bg5 Rxd1+ 19. Rxd1 Nxh5 20. Bxd8 (20. Qxh5 Qe5 $15) 20... Qxd8) (17... Rg6 18. Nxf6) 18. Bf4 $18 {[%emt 0:01:13]} Qb6 {[%emt 0:14:21]} 19. c5 {[%emt 0:02:22]} (19. Nxf6 $1 $18 {is more deadly.} Nxf6 20. Be5) 19... Qa6 {[%emt 0:01:31]} (19... Qa5 $16) 20. Nxf6 {[%emt 0:00:28]} Nxf6 {[%emt 0:00:09]} 21. Be5 {[%emt 0:00:07]} Rdg8 {[%emt 0:00:43]} 22. g3 {[%emt 0:00:50] And now Rac1 would win.} (22. Bxf6 Rxg2+ 23. Kh1 Bxf6 $17) 22... R4g6 {[%emt 0:04:20]} 23. Bc2 $1 {[%emt 0:00:09][%cal Bb3c2,Bc2d3,Bd3c4,Bc4e6][%mdl 32]} Rh6 $2 {[%emt 0:01:55]} (23... Qc4) 24. Bd3 {[%emt 0:05:05]} Qa5 {[%emt 0:00:19]} 25. Qf4 $1 {[%emt 0:00:41]} Ng4 {[%emt 0:00:07]} (25... Rgg6 {is a better defense.} 26. Bxg6 Rxg6) 26. Qxf7 {[%emt 0:02:12]} Qd8 {[%emt 0:00:06]} 27. Bc4 $1 {[%emt 0:00:08] A strong pair of Bishops.} ({Not} 27. Bg7 $2 {[#]} Rxg7 $1 {[%mdl 512]} 28. Qxg7 Qd5 $1 29. Qxh6 (29. Kf1 {is a self mate.} Qf3 30. Qg8+ Kc7) 29... Nxh6 $19) 27... Rgg6 {[%emt 0:00:45]} 28. Bg7 {[%emt 0:01:19]} Rf6 {[%emt 0:01:36]} 29. Bxf6 {[%emt 0:00:13] Chess con chili. Active counter play!} Rxf6 {[%emt 0:00:33]} 30. Bxe6+ {[%emt 0:00:07]} Kc7 {[%emt 0:00:12]} 31. Qg8 {[%emt 0:00:06]} Nxf2 {[%emt 0:00:21]} 32. Qxd8+ {[%emt 0:00:19]} Bxd8 {[%emt 0:00:27]} 33. Rf1 {[%emt 0:01:17]} Ne4 {[%emt 0:00:44]} 34. Rxf6 {[%emt 0:03:10]} Bxf6 {[%emt 0:00:09][%mdl 4096] Endgame KRB-KBN} 35. Kg2 {[%emt 0:00:10] Strongly threatening Rf1.} Ng5 {[%emt 0:00:53]} 36. Bf5 {[%emt 0:00:29]} Bxd4 {[%emt 0:00:13]} 37. Rh1 {[%emt 0:00:11]} Bxb2 {[%emt 0:00:44]} 38. Rh5 {[%emt 0:00:09]} Bf6 {[%emt 0:00:37]} 39. Bxh7 {[%emt 0:00:40]} Be7 {[%emt 0:00:11]} (39... b6 {was called for.} 40. cxb6+ axb6) 40. Bf5 {[%emt 0:00:11]} b5 {[%emt 0:00:56]} 41. cxb6+ {[%emt 0:30:14]} axb6 {[%emt 0:30:08]} 42. Rh6 {[%emt 0:00:48]} b5 {[%emt 0:00:17]} 43. Rg6 {[%emt 0:01:24]} c5 {[%emt 0:00:00]} 44. Kf2 {[%emt 0:00:00] Hoping for Ke3. White is winning.} Kd8 {[%emt 0:00:00]} 45. Rc6 {[%emt 0:00:00][%csl Gf5][%cal Rc6c8]} Bf8 {[%emt 0:00:00]} 46. Rc8+ {[%emt 0:00:00]} Ke7 {[%emt 0:00:00]} 47. Rxc5 {[%emt 0:00:00]} Ke8 $2 {[%emt 0:03:45] Weighted Error Value: White=0.23 (precise) /Black=0.42} (47... b4 48. Rc6 Bg7) 1-0

[Event "FIDE WSCC 50 2022"]
[Site "Assisi"]
[Date "2022.11.19"]
[Round "5.3"]
[White "Krizsany, Laszlo"]
[Black "Morovic Fernandez, Ivan"]
[Result "1/2-1/2"]
[ECO "D60"]
[WhiteElo "2371"]
[BlackElo "2480"]
[Annotator "TA"]
[PlyCount "103"]
[EventDate "2022.11.14"]
[EventType "swiss"]
[EventCountry "ITA"]
[SourceTitle "playchess.com"]
[Source "ChessBase"]
[SourceQuality "1"]
[TimeControl "40/5400+30:1800+30"]

{[%evp 17,103,6,14,0,10,-9,-9,-9,-9,-10,-11,-14,-10,-9,-10,-18,-10,-23,-27,-45,-42,-46,0,0,0,0,11,0,18,9,25,8,0,-12,-5,-26,-18,-18,-18,-18,-25,-25,0,0,0,0,0,-27,-27,-27,-27,-27,0,0,0,0,44,28,29,28,29,28,28,28,29,28,28,28,28,28,28,28,28,28,28,0,28,28,28,0,28,0,0,0,0,0,0,0]} 1. d4 {[%emt 0:00:06]} d5 {[%emt 0:00:25]} 2. c4 {[%emt 0:00:17]} e6 {[%emt 0:00:07]} 3. Nc3 {[%emt 0:00:18]} Be7 {[%emt 0:00:17]} 4. Nf3 {[%emt 0:00:32]} Nf6 {[%emt 0:00:12]} 5. Bg5 {[%emt 0:00:37]} O-O {[%emt 0:00:18]} 6. e3 {[%emt 0:00:20]} Nbd7 {[%emt 0:00:37]} 7. cxd5 {[%emt 0:01:07]} Nxd5 {[%emt 0:02:01]} 8. Bxe7 {[%emt 0:01:50]} Qxe7 {[%emt 0:00:04]} 9. Nxd5 {[%emt 0:05:27]} exd5 {[%emt 0:00:31]} 10. Rc1 {[%emt 0:00:26] D60: Queen's Gambit Declined: Classical: Unusual White 7th moves.} Nf6 {[%emt 0:01:47]} 11. Bd3 {[%emt 0:06:12] [#]} Bg4 $146 {[%emt 0:05:21]} ({Predecessor:} 11... b6 12. Qc2 Bd7 13. O-O Rac8 14. Ba6 Rce8 15. Qxc7 Bf5 16. Qxe7 Rxe7 17. Ne5 Rfe8 {1-0 (34) Tal,M (2630)-Rothman,M (1635) Boston 1988}) 12. Qc2 {[%emt 0:04:46]} Bxf3 {[%emt 0:04:20]} 13. gxf3 {[%emt 0:00:07]} c6 {[%emt 0:00:06]} 14. O-O {[%emt 0:05:33]} g6 {[%emt 0:14:57]} 15. Qc5 {[%emt 0:11:34]} Qe6 {[%emt 0:05:45]} 16. b4 {[%emt 0:00:23]} Nd7 {[%emt 0:04:29][%cal Bf6d7,Bd7f8,Bf8e6][%mdl 32]} 17. Qa5 {[%emt 0:05:20]} Rfc8 {[%emt 0:10:04]} 18. Rc3 {[%emt 0:08:01]} a6 {[%emt 0:02:06]} 19. Rfc1 {[%emt 0:01:49]} h5 {[%emt 0:01:58]} (19... Qf6 $15 {feels stronger.}) 20. Kg2 $11 {[%emt 0:05:18]} Qd6 {[%emt 0:05:04]} 21. Qa4 {[%emt 0:03:08]} Nf8 {[%emt 0:02:24]} 22. a3 {[%emt 0:04:29]} Ne6 {[%emt 0:01:13]} 23. Qc2 {[%emt 0:00:47]} Rc7 {[%emt 0:03:45]} 24. Rg1 {[%emt 0:02:41]} a5 {[%emt 0:08:29]} 25. Qb1 {[%emt 0:04:36]} ({Don't blunder} 25. Bxg6 $2 fxg6 26. b5 Ng7 $19) 25... axb4 {[%emt 0:01:16]} 26. axb4 {[%emt 0:00:07]} Ra4 $1 {[%emt 0:04:30]} 27. Rb3 {[%emt 0:00:12]} (27. b5 {is more complex.} c5 28. b6 Rc6 29. Bxg6 fxg6 30. Qxg6+ Ng7 31. Qxd6 Rxd6 32. Rxc5 Ne6 33. Rc8+) 27... b5 {[%emt 0:02:51]} 28. f4 {[%emt 0:01:36]} f5 {[%emt 0:03:10]} 29. Kh1 {[%emt 0:04:48][%csl LRf5,LRg6]} Rg7 {[%emt 0:00:57]} 30. Qc2 {[%emt 0:01:48]} Nd8 {[%emt 0:01:19]} 31. Qc3 {[%emt 0:01:57]} Kf8 {[%emt 0:00:57]} 32. Ra3 {[%emt 0:05:43]} Rga7 {[%emt 0:02:45]} 33. Rga1 {[%emt 0:01:12]} Rxa3 {[%emt 0:04:02]} 34. Rxa3 {[%emt 0:00:03]} Qe7 {[%emt 0:01:04]} 35. Ra5 {[%emt 0:05:10]} Kf7 {[%emt 0:01:01]} 36. Kg2 {[%emt 0:01:12]} Kf6 {[%emt 0:03:34]} 37. Qa1 {[%emt 0:02:30]} Rc7 {[%emt 0:00:10]} 38. Ra8 {[%emt 0:02:15]} Nf7 {[%emt 0:01:23]} 39. Qa5 {[%emt 0:03:35]} Nd6 {[%emt 0:01:13]} 40. Qb6 {[%emt 0:01:06]} Kf7 {[%emt 0:02:16]} 41. Kf1 {[%emt 0:06:14]} Qd7 {[%emt 0:04:35]} 42. Qb8 {[%emt 0:04:07] [#] Strongly threatening Qh8.} Rc8 {[%emt 0:04:17] Against Qh8} 43. Ra7 $1 {[%emt 0:01:57]} Rxb8 {[%emt 0:00:16]} 44. Rxd7+ {[%emt 0:00:03][%mdl 4096] Endgame KRB-KRN} Ke6 {[%emt 0:00:03]} 45. Rg7 {[%emt 0:01:56]} Kf6 {[%emt 0:00:28]} 46. Rd7 {[%emt 0:00:59]} Ne8 {[%emt 0:01:56]} (46... Ke6 $5 {[%cal Re6d7]} 47. Rg7 Kf6 $11) 47. Ra7 {[%emt 0:01:05] [#] Ra6 is the strong threat.} Nd6 {[%emt 0:10:30]} 48. Rd7 {[%emt 0:00:30][%cal Ba7d7,Bd7d8,Bd8g8][%mdl 32]} Nc8 {[%emt 0:13:37]} 49. Rd8 {[%emt 0:19:11]} (49. Rc7 $5 {[%cal Rc7c6]} Ne7 50. Ra7 $11) 49... Ra8 {The position is equal.} 50. Kg2 {[%emt 0:00:30]} Ke7 {[%emt 0:01:00]} 51. Rg8 {[%emt 0:00:30]} Kf7 {[%emt 0:00:30]} 52. Rd8 {[%emt 0:00:30] Weighted Error Value: White=0.06 (flawless) /Black=0.06 (flawless)} 1/2-1/2

[Event "FIDE WSCC 50 2022"]
[Site "Assisi"]
[Date "2022.11.19"]
[Round "5.4"]
[White "Cummings, David H."]
[Black "Holzke, Frank"]
[Result "0-1"]
[ECO "A21"]
[WhiteElo "2318"]
[BlackElo "2476"]
[Annotator "TA"]
[PlyCount "114"]
[EventDate "2022.11.14"]
[EventType "swiss"]
[EventCountry "ITA"]
[SourceTitle "playchess.com"]
[Source "ChessBase"]
[SourceQuality "1"]
[TimeControl "40/5400+30:1800+30"]

{[%evp 9,114,31,27,9,9,8,10,1,14,0,21,4,7,-75,-75,-73,-81,-94,-103,-125,-104,-109,-114,-106,-105,-107,-99,-95,-96,-107,-97,-132,-131,-129,-122,-154,-151,-144,-144,-174,-170,-202,-201,-280,-280,-249,-211,-250,-256,-277,-293,-277,-238,-426,-404,-403,-414,-410,-404,-401,-389,-382,-203,-203,-203,-203,-203,-712,-695,-629,-610,-578,-561,-537,-452,-1627,-1547,-1110,-714,-12329,-7646,-12261,-10313,-5177,-4047,-1758,-837,-12835,-12835,-12839,-12840,-12840,-12839,-12843,-12843,-12845,-12843,-12845,-12845,-12848,-12848,-12849,-12849,-12850,-12848,-12850,-12850]} 1. c4 {[%emt 0:00:07]} e5 {[%emt 0:00:09]} 2. Nc3 {[%emt 0:00:17]} Bb4 {[%emt 0:00:12]} 3. Nd5 {[%emt 0:00:29]} Na6 {[%emt 0:00:16]} 4. Nf3 {[%emt 0:09:24]} e4 {[%emt 0:00:47]} 5. Nd4 {[%emt 0:00:20]} Nf6 {[%emt 0:00:25]} 6. Nxb4 {[%emt 0:01:29] A21: English Opening: 1...e5 2 Nc3.} Nxb4 {[%emt 0:00:10]} 7. a3 {[%emt 0:00:28]} Nc6 {[%emt 0:00:14]} 8. Nxc6 {[%emt 0:03:01] The position is equal.} dxc6 {[%emt 0:00:32]} 9. d4 {[%emt 0:02:19] [#]} O-O $146 {[%emt 0:00:54][%cal Bh8f8,Bf8d8,Bd8d6][%mdl 32]} ({Predecessor:} 9... Be6 10. e3 Qd6 11. Bd2 a5 12. b4 a4 13. Be2 h5 14. h3 Rh6 {½-½ (14) Milanovic,S (2362)-Toth,A (2351) Kragujevac 2019}) 10. Bg5 {[%emt 0:00:51]} h6 {[%emt 0:00:38]} 11. Bxf6 {[%emt 0:04:22]} (11. Bf4 $11) 11... Qxf6 $17 {[%emt 0:00:25]} 12. e3 {[%emt 0:00:19]} c5 $1 {[%emt 0:03:41]} 13. Qd2 {[%emt 0:05:06]} Rd8 {[%emt 0:02:05][%cal Rc5d4]} 14. Rd1 {[%emt 0:03:20]} cxd4 {[%emt 0:04:37]} 15. exd4 {[%emt 0:00:41]} Bg4 {[%emt 0:00:12]} 16. Be2 {[%emt 0:04:11]} Bxe2 {[%emt 0:00:13] Black is more active.} 17. Kxe2 {[%emt 0:01:41]} Rd6 {[%emt 0:00:25]} 18. Rhe1 {[%emt 0:13:11]} Rad8 $36 {[%emt 0:05:51][%cal Rd6d4][%mdl 2048] Black is on the roll.} 19. d5 {[%emt 0:01:54]} c6 {[%emt 0:00:18]} 20. Qc3 {[%emt 0:09:53]} Qxc3 {[%emt 0:02:37]} (20... cxd5 21. Qxf6 gxf6 22. cxd5 $15) 21. bxc3 {[%emt 0:00:04]} cxd5 {[%emt 0:00:13]} 22. Rxd5 {[%emt 0:00:52]} Rxd5 {[%emt 0:00:09]} 23. cxd5 {[%emt 0:00:04]} Rxd5 {[%emt 0:00:09][%mdl 4096] Endgame KR-KR} 24. Rb1 {[%emt 0:00:20]} b6 {[%emt 0:00:53]} 25. Rb4 {[%emt 0:00:32] [#]} f5 {[%emt 0:00:55]} 26. g4 {[%emt 0:04:30]} g6 {[%emt 0:00:54]} ({Weaker is} 26... fxg4 27. Rxe4 h5 28. Ra4 $17) 27. gxf5 {[%emt 0:00:26]} gxf5 {[%emt 0:00:08]} 28. f3 {[%emt 0:00:59]} exf3+ {[%emt 0:01:39]} 29. Kxf3 {[%emt 0:01:17]} Kg7 {[%emt 0:00:44]} 30. Ra4 {[%emt 0:02:55] [#]} a5 {[%emt 0:00:43]} 31. Kf4 $2 {[%emt 0:01:02]} (31. Rf4 {keeps fighting.}) 31... Kf6 $19 {[%emt 0:02:28]} 32. Rc4 {[%emt 0:00:36]} Rc5 {[%emt 0:00:55] Inhibits Rc6+.} 33. Rd4 {[%emt 0:00:04]} Ke6 {[%emt 0:00:34] Inhibits Rd6+.} 34. c4 {[%emt 0:01:44]} Rc6 {[%emt 0:03:53]} 35. Ke3 {[%emt 0:06:08]} Rd6 {[%emt 0:02:51]} (35... a4 $142 {White must now prevent ...Rd6.} 36. Rh4 Ke5) 36. Rh4 {[%emt 0:01:30]} Ke5 {[%emt 0:00:12]} 37. a4 {[%emt 0:02:02]} Rf6 {[%emt 0:03:53] ...f4+ is the strong threat.} 38. Kf3 {[%emt 0:07:10]} (38. Kd3) 38... f4 {[%emt 0:01:25] Black is clearly winning.} 39. Rh5+ {[%emt 0:00:16]} Kd4 {[%emt 0:00:21]} 40. Rb5 {[%emt 0:00:15]} Kxc4 {[%emt 0:00:33]} 41. h4 {[%emt 0:31:59]} Kd4 {[%emt 0:32:35]} 42. h5 {[%emt 0:01:07]} (42. Rb2 $142 Kc3 43. Rb5) 42... Kc4 {[%emt 0:00:40]} 43. Rb2 {[%emt 0:06:44]} Kc5 {[%emt 0:00:20]} 44. Rb5+ {[%emt 0:00:59]} Kc6 {[%emt 0:02:09]} 45. Re5 {[%emt 0:04:48]} Kb7 {[%emt 0:00:28]} 46. Rd5 {[%emt 0:00:00]} Ka6 {[%emt 0:00:00]} 47. Re5 {[%emt 0:00:00]} Rc6 {[%emt 0:00:00]} 48. Kxf4 {[%emt 0:00:00]} Rc4+ {[%emt 0:00:00]} 49. Kf5 {[%emt 0:00:00]} Rxa4 {[%emt 0:00:00]} 50. Kg6 {[%emt 0:00:00]} Rg4+ {[%emt 0:00:00]} 51. Kxh6 {[%emt 0:00:00]} a4 {[%emt 0:00:00][%cal Ba5a4,Ba4a3][%mdl 32]} 52. Re8 {[%emt 0:00:00]} Kb5 {[%emt 0:00:00]} 53. Ra8 {[%emt 0:00:00]} Kb4 {[%emt 0:00:00]} 54. Kh7 {[%emt 0:00:00]} a3 {[%emt 0:00:00]} 55. h6 {[%emt 0:00:00]} b5 {[%emt 0:00:00]} 56. Kh8 {[%emt 0:00:00]} Kb3 {[%emt 0:00:00]} 57. h7 {[%emt 0:00:00]} Rh4 {[%emt 0:00:00] Black took control after the opening.  Weighted Error Value: White=0.76/Black=0.06 (flawless)} 0-1

[Event "FIDE WSCC 50 2022"]
[Site "Assisi"]
[Date "2022.11.19"]
[Round "5.5"]
[White "Sturua, Zurab"]
[Black "Dishman, Stephen"]
[Result "1/2-1/2"]
[ECO "B18"]
[WhiteElo "2522"]
[BlackElo "2255"]
[Annotator "TA"]
[PlyCount "56"]
[EventDate "2022.11.14"]
[EventType "swiss"]
[EventCountry "ITA"]
[SourceTitle "playchess.com"]
[Source "ChessBase"]
[SourceQuality "1"]
[TimeControl "40/5400+30:1800+30"]

{[%evp 9,56,0,0,0,0,2,-11,-6,0,-11,-11,-15,-12,-7,0,0,0,-13,1,-13,0,-28,-25,-22,0,0,0,0,0,-6,0,0,0,0,21,0,0,0,0,0,0,-15,-22,-16,-8,-8,-8,-9,54]} 1. e4 {[%emt 0:00:12]} c6 {[%emt 0:00:26]} 2. d4 {[%emt 0:00:36]} d5 {[%emt 0:00:06]} 3. Nc3 {[%emt 0:00:15]} dxe4 {[%emt 0:00:19]} 4. Nxe4 {[%emt 0:00:06]} Bf5 {[%emt 0:00:07]} 5. Nc5 {[%emt 0:00:22]} e5 {[%emt 0:00:59]} 6. Nxb7 {[%emt 0:00:13] B18: Classical Caro-Kann: 4...Bf5 sidelines.} Qb6 {[%emt 0:00:08]} 7. Nc5 {[%emt 0:00:10] Threatening Bd3.} Bxc5 {[%emt 0:01:01]} 8. dxc5 {[%emt 0:00:07]} Qxc5 {[%emt 0:00:04]} 9. c3 {[%emt 0:01:05]} Nf6 {[%emt 0:01:14]} 10. Nf3 {[%emt 0:00:25]} O-O {[%emt 0:01:12]} 11. Be2 {[%emt 0:00:25]} Nbd7 {[%emt 0:01:06]} 12. O-O {[%emt 0:00:25]} h6 {[%emt 0:02:33] [#]} 13. Be3 $146 {[%emt 0:05:30]} ({Predecessor:} 13. Qa4 Nd5 14. Qh4 Rfe8 15. Re1 e4 16. Nd4 Bh7 17. Qg3 Kh8 18. Nb3 Qe7 19. Be3 Nxe3 20. Qxe3 {1-0 (42) Istratescu,A (2575)-Ribreau,H (2152) Paleochora 2018}) 13... Qe7 {[%emt 0:00:32]} 14. Qa4 {[%emt 0:04:13]} Nd5 {[%emt 0:07:36]} 15. Qxc6 {[%emt 0:05:25]} Nxe3 {[%emt 0:00:24]} 16. fxe3 {[%emt 0:00:08]} Rfc8 {[%emt 0:01:06] The position is equal.} (16... Rab8 $5 {[%cal Rb8b2]}) 17. Qd5 {[%emt 0:07:59][%cal Of3e5]} Rab8 {[%emt 0:06:11]} 18. Qd2 {[%emt 0:32:36]} Nc5 {[%emt 0:08:50]} 19. Bc4 {[%emt 0:02:02]} Rd8 {[%emt 0:17:29]} 20. Qe2 {[%emt 0:00:16][%cal Of3d4]} Bd3 {[%emt 0:13:54]} 21. Bxd3 {[%emt 0:00:41]} Nxd3 {[%emt 0:00:04]} 22. Rab1 {[%emt 0:07:30]} Qc5 {[%emt 0:00:19]} 23. Ne1 {[%emt 0:01:22]} e4 {[%emt 0:03:07]} 24. Nxd3 {[%emt 0:00:31]} Rxd3 {[%emt 0:00:57]} 25. Rbe1 {[%emt 0:01:50]} Qd5 {[%emt 0:02:56]} 26. Rd1 {[%emt 0:11:15] Inhibits Rd2.} Qxa2 {[%emt 0:01:00]} 27. Rxd3 {[%emt 0:00:14]} exd3 {[%emt 0:00:10]} 28. Qxd3 {[%emt 0:18:37]} Ra8 {[%emt 0:30:40] A balanced but interesting game.  Weighted Error Value: White=0.06 (flawless) /Black=0.02 (flawless)} (28... Qxb2 $11 29. c4 Qb4) 1/2-1/2

[Event "FIDE WSCC 50 2022"]
[Site "Assisi"]
[Date "2022.11.19"]
[Round "5.6"]
[White "Berend, Elvira"]
[Black "Danielsen, Henrik"]
[Result "1-0"]
[ECO "D12"]
[WhiteElo "2280"]
[BlackElo "2514"]
[Annotator "TA"]
[PlyCount "69"]
[EventDate "2022.11.14"]
[EventType "swiss"]
[EventCountry "ITA"]
[SourceTitle "playchess.com"]
[Source "ChessBase"]
[SourceQuality "1"]
[TimeControl "40/5400+30:1800+30"]

{[%evp 13,69,11,13,14,18,10,19,14,9,0,0,0,20,0,0,0,6,5,20,18,29,-13,-9,-1,0,-49,-49,-43,-25,-27,-34,-37,-12,-11,0,0,0,0,0,0,0,0,0,0,0,0,0,0,270,262,310,310,298,314,311,314,288,262]} 1. d4 {[%emt 0:00:05]} Nf6 {[%emt 0:00:05]} 2. Nf3 {[%emt 0:00:14]} d5 {[%emt 0:00:17]} 3. c4 {[%emt 0:00:37]} c6 {[%emt 0:00:12]} 4. e3 {[%emt 0:00:15]} Bf5 {[%emt 0:01:00]} 5. Bd3 {[%emt 0:01:00]} Bxd3 {[%emt 0:00:28]} 6. Qxd3 {[%emt 0:00:07]} e6 {[%emt 0:00:14]} 7. O-O {[%emt 0:00:09]} Nbd7 {[%emt 0:01:18]} 8. b3 {[%emt 0:03:02] D12: Slav Defence: 3 Nf3 Nf6 4 e3 Bf5.} a5 {[%emt 0:01:22]} 9. Nbd2 {[%emt 0:01:01]} Be7 {[%emt 0:00:50]} 10. e4 {[%emt 0:01:10] The position is equal.} O-O {[%emt 0:04:52]} 11. e5 {[%emt 0:10:09]} Ne8 {[%emt 0:00:10] [#]} 12. Rd1 $146 {[%emt 0:04:46]} ({Predecessor:} 12. cxd5 exd5 13. a4 Nc7 14. Ba3 Bxa3 15. Rxa3 Ne6 16. Rc1 f6 17. Qe3 fxe5 18. dxe5 {½-½ (51) Admiraal,M (2321)-Burg,T (2492) Wijk aan Zee 2013}) 12... a4 {[%emt 0:02:29]} 13. Rb1 {[%emt 0:01:09]} axb3 {[%emt 0:00:18]} 14. axb3 {[%emt 0:00:23]} Nc7 {[%emt 0:00:32]} 15. Nf1 {[%emt 0:00:15]} dxc4 {[%emt 0:01:36]} 16. bxc4 {[%emt 0:00:29]} b5 {[%emt 0:00:12]} 17. cxb5 {[%emt 0:05:59]} cxb5 {[%emt 0:00:42]} 18. Ng3 {[%emt 0:00:16]} Nb6 {[%emt 0:05:42]} 19. Nd2 {[%emt 0:16:40]} (19. h4 $11) 19... b4 $15 {[%emt 0:05:29]} 20. Nde4 {[%emt 0:01:36]} Ncd5 {[%emt 0:02:09]} 21. Nh5 {[%emt 0:01:02][%cal Oc1h6]} Kh8 {[%emt 0:04:43]} 22. Qg3 {[%emt 0:03:53][%csl Gh5][%cal Rg3g7]} g6 {[%emt 0:02:21]} 23. Nhf6 {[%emt 0:01:46]} Nxf6 {[%emt 0:02:34]} 24. exf6 {[%emt 0:00:23]} Bxf6 {[%emt 0:00:12] Threatens to win with ...Nd5.} 25. Bh6 $40 {[%emt 0:14:10][%mdl 128] White attacks.} Bg7 {[%emt 0:02:42]} 26. Bxg7+ {[%emt 0:01:17]} Kxg7 {[%emt 0:00:02]} 27. Rxb4 {[%emt 0:00:14]} Ra5 {[%emt 0:07:39] Prevents Qe5+.} 28. h4 {[%emt 0:00:38]} Nd5 {[%emt 0:09:44]} 29. Rb7 {[%emt 0:02:16]} Nf6 {[%emt 0:00:33]} 30. Ng5 {[%emt 0:00:36]} Kg8 $2 {[%emt 0:00:22][%mdl 8192] [#]} (30... Qc8 $11 {and Black is okay.} 31. Rdb1 h6) 31. Nxf7 $1 $18 {[%emt 0:01:39][%mdl 512] White has a decisive advantage.} Rxf7 {[%emt 0:06:36]} (31... Ne4 32. Nxd8) 32. Rb8 {[%emt 0:00:06]} Rf8 {[%emt 0:02:28]} 33. Rxd8 {[%emt 0:00:05]} Rxd8 {[%emt 0:00:05]} 34. Qc7 {[%emt 0:00:23]} Rad5 {[%emt 0:00:11]} 35. Qe7 {[%emt 0:00:12] Weighted Error Value: White=0.05 (flawless) /Black=0.22 (precise)} 1-0